bitfinex-derivatives/quotes_BNBF0:USTF0_20241225
["timestamp","ask_amount","ask_price","bid_price","bid_amount"]
[1735143569321,0.28501396,701.72,699.03,0.28611075]
[1735143569495,0.262428,701.71,699.03,0.28611075]
[1735143574009,0.262428,701.71,699.07,1.27418088]
[1735143574602,0.28501396,701.72,699.07,1.27418088]
[1735143574905,0.26238785,701.71,699.07,1.27418088]
[1735143575701,0.26238785,701.71,699.18,1.27418088]
[1735143577004,0.26238785,701.71,699.21,1.27418088]
[1735143577400,0.28501396,701.72,699.21,1.27418088]
[1735143577608,0.26237594,701.71,699.21,1.27418088]
[1735143577909,0.26237594,701.71,699.18,1.27418088]
[1735143578107,0.26237594,701.71,699.18,6.6571041]
[1735143578308,0.26237594,701.71,699.19,5.38292322]
[1735143578507,0.26237594,701.71,699.2,5.38292322]
[1735143578807,0.26237594,701.71,699.21,5.38292322]
[1735143579009,0.26237594,701.71,699.32,1.27418088]
[1735143579605,0.26237594,701.71,699.29,1.27418088]
[1735143580013,0.26237594,701.71,699.31,0.28599619]
[1735143580212,0.28506271,701.6,699.32,1.27418088]
[1735143580406,0.26237594,701.59,699.34,0.28598392]
[1735143580811,0.2850749,701.57,699.34,0.28598392]
[1735143581011,0.26237594,701.56,699.34,0.28598392]
[1735143581210,0.28508709,701.54,699.34,1.5601648]
[1735143581510,0.26237594,701.53,699.34,6.94308802]
[1735143581712,0.28509928,701.51,699.35,5.38292322]
[1735143581913,0.28509928,701.51,699.37,0.28597166]
[1735143582112,0.26236455,701.5,699.37,0.28597166]
[1735143582313,0.28509928,701.51,699.37,0.28597166]
[1735143582314,0.28511147,701.48,699.37,0.28597166]
[1735143587815,0.28511147,701.48,699.37,3.11218739]
[1735143588116,0.28511147,701.48,699.37,5.67422298]
[1735143588319,0.28511147,701.48,699.38,2.82621573]
[1735143588517,0.28511147,701.48,699.4,0.28595939]
[1735143596523,0.28511147,701.48,699.4,3.11511147]
[1735143596724,0.28511147,701.48,699.41,2.56203559]
[1735143597023,0.28511147,701.48,699.41,3.83621647]
[1735143597325,0.28511147,701.48,699.42,2.82941968]
[1735143597624,0.28511147,701.48,699.41,1.27418088]
[1735143598028,0.28511147,701.48,699.4,0.28595939]
[1735143602734,0.28511147,701.48,699.43,1.27418088]
[1735143603438,0.28511147,701.48,699.48,1.27418088]
[1735143604039,0.26232867,701.47,699.48,1.27418088]
[1735143604240,0.28511147,701.48,699.48,1.27418088]
[1735143604542,0.28511147,701.48,699.54,1.27418088]
[1735143605142,0.28511147,701.48,699.74,1.27418088]
[1735143607036,0.28511147,701.48,699.71,5.40188627]
[1735143607037,0.28511147,701.48,699.79,1.27418088]
[1735143607646,0.28511147,701.48,699.77,1.27418088]
[1735143608546,0.28511147,701.48,699.59,1.27418088]
[1735143608547,0.26239714,701.47,699.59,1.27418088]
[1735143609143,0.26239714,701.47,699.47,2.16787719]
[1735143609350,0.26239714,701.47,699.29,1.27418088]
[1735143609545,0.26241399,701.46,699.29,1.27418088]
[1735143609848,0.26241399,701.45,699.3,2.57202896]
[1735143610050,1.05502117,701.42,699.46,1.27418088]
[1735143610248,0.26241399,701.41,699.46,1.27418088]
[1735143610651,0.26241399,701.41,699.34,0.28598392]
[1735143610945,0.26241399,701.4,699.34,0.28598392]
[1735143611248,0.26241399,701.39,699.34,0.28598392]
[1735143611445,0.26241399,701.38,699.34,0.28598392]
[1735143611650,0.28511147,701.48,699.34,0.28598392]
[1735143611849,0.26242365,701.47,699.34,0.28598392]
[1735143612249,0.26241158,701.46,699.34,0.28598392]
[1735143612454,0.26241158,701.45,699.34,0.28598392]
[1735143612651,0.28511147,701.48,699.34,0.28598392]
[1735143612842,0.28511147,701.48,699.51,1.27418088]
[1735143613850,0.28511147,701.48,699.41,2.83010417]
[1735143614253,0.28511147,701.48,699.42,2.57068639]
[1735143614444,0.28511147,701.48,699.43,2.83010417]
[1735143614646,0.28511147,701.48,699.56,1.28001893]
[1735143615549,0.28511147,701.48,699.44,2.57068639]
[1735143615951,0.28511147,701.48,699.4,1.56597832]
[1735143616152,0.28511147,701.48,699.41,1.28001893]
[1735143616852,0.28511147,701.48,699.4,0.28595939]
[1735143617249,0.26239147,701.47,699.4,0.28595939]
[1735143617751,0.28511147,701.48,699.4,0.28595939]
[1735143617942,0.26242055,701.47,699.4,0.28595939]
[1735143619245,0.28511147,701.48,699.4,0.28595939]
[1735143621056,0.28511147,701.48,699.42,1.28001893]
[1735143621852,0.28511147,701.48,699.4,0.28595939]
[1735143623855,0.26243241,701.47,699.4,0.28595939]
[1735143625454,0.26243838,701.46,699.4,0.28595939]
[1735143625656,0.26243838,701.45,699.4,0.28595939]
[1735143625855,0.26243838,701.44,699.4,0.28595939]
[1735143626056,0.26243838,701.43,699.4,0.28595939]
[1735143626255,0.26243838,701.42,699.4,0.28595939]
[1735143626455,0.26243838,701.41,699.4,0.28595939]
[1735143626656,0.26243838,701.4,699.4,0.28595939]
[1735143626857,0.26243838,701.39,699.4,0.28595939]
[1735143627055,0.26243838,701.38,699.4,0.28595939]
[1735143627262,0.26243838,701.37,699.4,0.28595939]
[1735143627456,0.26243838,701.36,699.4,0.28595939]
[1735143627651,0.26243838,701.35,699.4,0.28595939]
[1735143627851,0.26243838,701.34,699.4,0.28595939]
[1735143628151,0.28511147,701.48,699.4,0.28595939]
[1735143628451,0.26243597,701.47,699.4,0.28595939]
[1735143630484,0.28511147,701.48,699.4,0.28595939]
[1735143630653,0.26239811,701.47,699.4,0.28595939]
[1735143631355,0.26240247,701.46,699.4,0.28595939]
[1735143631557,0.28511147,701.48,699.4,0.28595939]
[1735143631558,0.26240247,701.45,699.4,0.28595939]
[1735143631758,0.26240247,701.44,699.49,1.28001893]
[1735143631958,0.26240247,701.43,699.49,1.28001893]
[1735143632263,0.26240247,701.42,699.49,1.28001893]
[1735143632453,0.28511147,701.48,699.48,1.28001893]
[1735143633260,0.28511147,701.48,699.4,0.28595939]
[1735143636864,0.26237385,701.47,699.4,0.28595939]
[1735143637566,0.28511147,701.48,699.4,0.28595939]
[1735143637863,0.2623443,701.47,699.4,0.28595939]
[1735143638063,0.28511147,701.48,699.4,0.28595939]
[1735143638661,0.28511147,701.48,699.53,1.28001893]
[1735143639365,0.28511147,701.48,699.4,0.28595939]
[1735143642369,1.05179864,701.93,699.31,2.57259638]
[1735143642662,0.26236738,701.92,699.32,2.83269979]
[1735143643066,1.05179864,701.9,699.33,2.83269979]
[1735143643264,0.26236738,701.89,699.34,2.83269979]
[1735143643460,0.26236738,701.89,699.35,2.57259638]
[1735143643662,0.26236738,701.89,699.36,2.83269979]
[1735143643860,1.05179864,701.83,699.37,2.57259638]
[1735143644160,1.05179864,701.83,699.38,2.83310565]
[1735143644366,0.26238816,701.82,699.38,2.83310565]
[1735143644567,1.05179864,701.74,699.39,2.57259638]
[1735143644767,0.26238816,701.73,699.4,2.83310565]
[1735143645268,1.05179864,701.69,699.41,2.57259638]
[1735143645464,0.26238816,701.68,699.42,2.83310565]
[1735143645968,0.26238816,701.68,699.43,2.57259638]
[1735143646162,0.26238816,701.68,699.44,2.83310565]
[1735143646560,0.26238816,701.67,699.45,2.57259638]
[1735143646766,0.26238816,701.66,699.46,2.83310565]
[1735143646962,1.05179864,701.67,699.47,2.57259638]
[1735143647265,0.26238816,701.66,699.48,2.83314232]
[1735143647468,0.26238816,701.66,699.49,2.57259638]
[1735143647864,0.26238816,701.65,699.49,2.57259638]
[1735143648065,0.26238816,701.64,699.5,2.83311123]
[1735143648262,0.26238816,701.63,699.51,2.57259638]
[1735143648461,0.26238816,701.62,699.41,1.28001893]
[1735143648665,0.26238816,701.61,699.42,1.28001893]
[1735143648865,0.26236175,701.6,699.42,1.28001893]
[1735143649068,0.26236175,701.59,699.42,1.28001893]
[1735143649266,0.26236175,701.58,699.42,1.28001893]
[1735143649464,0.26236175,701.57,699.42,1.28001893]
[1735143649769,0.26236175,701.56,699.42,1.28001893]
[1735143649969,0.26236476,701.55,699.42,1.28001893]
[1735143650167,0.26236476,701.54,699.43,1.28001893]
[1735143650363,0.26236476,701.53,699.43,1.28001893]
[1735143650568,0.26236476,701.52,699.43,1.28001893]
[1735143650768,0.26236476,701.51,699.43,1.28001893]
[1735143650970,0.26236476,701.5,699.53,1.28001893]
[1735143651164,0.26236476,701.49,699.53,1.28001893]
[1735143651364,1.05179864,701.71,699.53,1.28001893]
[1735143651567,0.26235613,701.7,699.53,1.28001893]
[1735143651967,0.26235613,701.7,699.51,1.28001893]
[1735143652170,0.26235613,701.69,699.51,1.28001893]
[1735143652469,0.26235613,701.68,699.51,1.28001893]
[1735143652670,0.26235119,701.67,699.51,1.28001893]
[1735143652867,1.05179864,701.6,699.63,1.28001893]
[1735143653063,0.26235119,701.59,699.63,1.28001893]
[1735143653662,0.26235119,701.59,699.66,1.28001893]
[1735143653869,0.26235119,701.58,699.66,1.28001893]
[1735143654065,0.26235119,701.57,699.66,1.28001893]
[1735143654268,0.26235119,701.56,699.66,1.28001893]
[1735143654469,0.26235119,701.55,699.66,1.28001893]
[1735143654668,0.26235119,701.54,699.62,6.68560795]
[1735143654870,1.05179864,701.6,699.62,6.68560795]
[1735143654871,0.26235119,701.53,699.62,3.85261531]
[1735143655070,0.26235119,701.52,699.62,1.28001893]
[1735143655271,0.26235119,701.51,699.33,1.28001893]
[1735143655471,0.26235119,701.5,699.37,2.57408708]
[1735143655671,0.26235119,701.49,699.33,1.28001893]
[1735143655866,0.26235119,701.48,699.33,1.28001893]
[1735143656067,1.05179864,701.65,699.27,1.28001893]
[1735143656273,0.26235119,701.64,699.27,1.28001893]
[1735143657068,0.26235119,701.64,699.16,2.83482689]
[1735143657367,0.26235119,701.63,699.16,2.83482689]
[1735143657566,0.26235119,701.62,699.17,2.57442444]
[1735143657767,0.26235119,701.61,699.18,2.83482689]
[1735143657966,0.26235119,701.6,699.18,2.83482689]
[1735143658167,1.05179864,701.58,699.18,2.83482689]
[1735143658371,0.26244354,701.57,699.19,2.57442444]
[1735143658669,0.26244354,701.57,699.2,2.83482689]
[1735143658874,1.05179864,701.41,699.37,1.28001893]
[1735143659076,0.26244354,701.4,699.37,1.28001893]
[1735143659968,0.26244354,701.4,699.32,6.68927026]
[1735143660172,0.26244354,701.39,699.33,5.40925133]
[1735143660372,0.26244354,701.38,699.34,2.83482689]
[1735143660569,0.26244354,701.37,699.41,1.28001893]
[1735143660873,0.26245643,701.36,699.41,1.28001893]
[1735143661075,0.26245643,701.35,699.41,1.28001893]
[1735143661270,0.26245643,701.34,699.41,1.28001893]
[1735143661476,1.05179864,701.32,699.42,1.28001893]
[1735143661775,0.26245643,701.31,699.42,1.28001893]
[1735143661977,1.05179864,701.27,699.39,5.40911489]
[1735143662275,0.26245643,701.26,699.4,2.83469045]
[1735143662470,0.26245643,701.26,699.4,5.40911489]
[1735143662671,0.26248648,701.25,699.41,2.57442444]
[1735143662977,0.26248648,701.24,699.42,2.83389751]
[1735143663175,0.26248648,701.23,699.32,1.28001893]
[1735143663470,0.26248719,701.22,699.23,1.28001893]
[1735143663675,1.05179864,701.3,699.23,1.28001893]
[1735143663869,0.26249521,701.29,699.23,1.28001893]
[1735143664175,0.28522532,701.2,699.23,1.28001893]
[1735143664477,0.26249521,701.19,699.14,5.40679338]
[1735143664668,0.26249521,701.19,699.15,5.69285502]
[1735143664872,0.26249832,701.18,699.16,2.8337233]
[1735143665072,0.26249832,701.17,699.17,2.57307008]
[1735143665269,0.26249832,701.16,699.22,1.28001893]
[1735143665471,0.28522532,701.2,699.22,1.28001893]
[1735143665676,0.26247383,701.19,699.22,1.28001893]
[1735143666073,0.26247383,701.19,699.22,4.11374223]
[1735143666276,0.26247383,701.19,699.23,2.8337233]
[1735143666470,0.26247383,701.19,699.23,1.35123047]
[1735143666677,0.26247383,701.19,699.24,2.57307008]
[1735143666977,0.26247383,701.19,699.25,2.8337233]
[1735143667174,0.26247383,701.19,699.15,0.28606164]
[1735143667175,0.26247383,701.19,699.26,5.40679338]
[1735143667370,0.26247383,701.19,699.27,2.8337233]
[1735143667578,0.26247383,701.19,699.27,5.40679338]
[1735143667777,0.26247383,701.19,699.28,2.8337233]
[1735143667976,0.26247383,701.19,699.29,2.57307008]
[1735143668176,0.28522532,701.2,699.3,2.8337233]
[1735143668376,0.26246027,701.19,699.3,2.8337233]
[1735143668577,0.26246027,701.19,699.31,2.57307008]
[1735143668777,0.26246027,701.19,699.32,2.8337233]
[1735143669180,0.26246027,701.19,699.33,2.57307008]
[1735143669478,0.28522532,701.2,699.33,2.57307008]
[1735143669682,0.28522532,701.2,699.24,1.28001893]
[1735143670280,0.26245221,701.19,699.24,1.28001893]
[1735143670779,0.28522532,701.2,699.18,2.83252433]
[1735143670980,0.26244779,701.19,699.18,5.404609]
[1735143671178,0.26244779,701.19,699.19,5.404609]
[1735143671480,0.26244779,701.19,699.31,1.28001893]
[1735143671683,0.26245975,701.18,699.31,1.28001893]
[1735143671885,0.26245975,701.17,699.31,1.28001893]
[1735143672178,0.28522532,701.2,699.15,0.28606164]
[1735143672179,0.26245975,701.16,699.28,1.28001893]
[1735143672378,0.26245975,701.15,699.28,1.28001893]
[1735143672578,0.26245975,701.14,699.28,1.28001893]
[1735143672780,0.26245975,701.13,699.28,1.28001893]
[1735143672980,0.26245975,701.12,699.28,2.83252433]
[1735143673182,0.26245975,701.11,699.29,2.57208467]
[1735143673378,0.26245975,701.1,699.3,2.83252433]
[1735143673581,0.26245975,701.09,699.3,2.83252433]
[1735143673781,0.2624567,701.08,699.31,2.57208467]
[1735143674082,0.28522532,701.2,699.32,2.83252433]
[1735143674283,0.26244994,701.19,699.32,2.83252433]
[1735143674484,0.26244994,701.19,699.33,2.57208467]
[1735143674684,0.28522532,701.2,699.33,2.57208467]
[1735143674883,0.28522532,701.2,699.34,3.11832535]
[1735143675185,0.28522532,701.2,699.35,0.28597983]
[1735143675480,0.28522532,701.2,699.35,2.8580645]
[1735143675682,0.28522532,701.2,699.36,2.83234143]
[1735143675883,0.28522532,701.2,699.35,0.28597983]
[1735143675884,0.28522532,701.2,699.37,5.4044261]
[1735143676185,0.28522532,701.2,699.38,2.83234143]
[1735143676381,0.28522532,701.2,699.38,5.4044261]
[1735143676578,0.28522532,701.2,699.39,2.57208467]
[1735143676778,0.28522532,701.2,699.35,0.28597983]
[1735143682883,0.28522532,701.2,699.58,1.28001893]
[1735143684090,0.28522532,701.2,699.52,2.5713397]
[1735143684287,0.28522532,701.2,699.51,2.5713397]
[1735143684483,0.28522532,701.2,699.46,1.28001893]
[1735143685288,0.28522532,701.2,699.38,2.82782662]
[1735143685487,0.28522532,701.2,699.39,2.5713397]
[1735143685885,0.28522532,701.2,699.35,0.28597983]
[1735143714908,0.28522532,701.2,699.35,1.56599876]
[1735143715907,0.28522532,701.2,699.38,1.28001893]
[1735143716608,0.28522532,701.2,699.39,0.28596348]
[1735143716805,0.28522532,701.2,699.44,1.28001893]
[1735143717009,0.28522532,701.2,699.45,0.28593895]
[1735143717411,0.28522532,701.2,699.46,1.28001893]
[1735143718109,0.28522532,701.2,699.47,0.28593077]
[1735143718907,0.28522532,701.2,699.47,3.11591852]
[1735143719112,0.28522532,701.2,699.48,2.5698659]
[1735143719310,0.28522532,701.2,699.49,3.11591035]
[1735143719713,0.28522532,701.2,699.57,1.28001893]
[1735143720113,0.28522532,701.2,699.58,0.28588581]
[1735143724411,0.28522532,701.2,699.74,1.28001893]
[1735143725310,0.28522532,701.2,699.75,1.28001893]
[1735143726016,0.28522532,701.2,699.68,2.8272435]
[1735143726210,0.28522532,701.2,699.69,2.5698659]
[1735143726416,1.05179864,702.28,699.7,2.8272435]
[1735143726615,0.26215862,702.27,699.7,2.8272435]
[1735143726816,0.26215862,702.27,699.89,1.28001893]
[1735143727018,0.28483942,702.15,699.89,1.28001893]
[1735143727213,0.26215862,702.14,699.89,1.28001893]
[1735143727419,0.26215862,702.14,699.83,1.28001893]
[1735143728112,0.26215862,702.14,699.95,1.28001893]
[1735143728811,0.26213373,702.13,699.95,1.28001893]
[1735143729012,0.26213373,702.12,699.95,1.28001893]
[1735143729216,0.28483942,702.15,699.95,1.28001893]
[1735143729511,0.28483942,702.15,699.89,5.3971094]
[1735143729512,0.28483942,702.15,699.9,5.3971094]
[1735143729712,0.28483942,702.15,699.91,2.81560452]
[1735143729912,0.28483942,702.15,699.91,5.38547042]
[1735143730111,0.28483942,702.15,699.92,5.38547042]
[1735143730313,0.28483942,702.15,699.93,2.81560452]
[1735143730519,0.28483942,702.15,699.94,2.5698659]
[1735143731014,0.28483942,702.15,699.95,1.47106269]
[1735143731219,0.28483942,702.15,699.62,2.81254671]
[1735143731414,0.28483942,702.15,699.63,2.5698659]
[1735143731616,0.28483942,702.15,699.64,2.81254671]
[1735143732020,0.28483942,702.15,699.65,2.5698659]
[1735143732218,0.28483942,702.15,699.66,2.81254671]
[1735143732419,0.28483942,702.15,699.67,2.5698659]
[1735143732621,0.28483942,702.15,699.68,2.81254671]
[1735143732919,0.28483942,702.15,699.69,2.5698659]
[1735143733120,0.28483942,702.15,699.7,2.81254671]
[1735143733319,0.28483942,702.15,699.71,2.5698659]
[1735143733522,0.28483942,702.15,699.72,2.81254671]
[1735143733719,0.28483942,702.15,699.73,2.5698659]
[1735143733919,0.28483942,702.15,699.74,2.81254671]
[1735143734116,0.28483942,702.15,699.75,2.5698659]
[1735143734319,0.28483942,702.15,699.76,2.81254671]
[1735143734924,0.28483942,702.15,699.77,2.5698659]
[1735143735123,0.28483942,702.15,699.78,2.81254671]
[1735143735620,0.28483942,702.15,699.79,2.5698659]
[1735143735825,0.28483942,702.15,699.8,2.81254671]
[1735143736025,0.28483942,702.15,699.81,2.5698659]
[1735143736324,0.28483942,702.15,699.82,2.81254671]
[1735143736723,0.28483942,702.15,699.83,2.5698659]
[1735143737023,0.28483942,702.15,699.84,2.81254671]
[1735143737426,0.28483942,702.15,699.85,2.5698659]
[1735143737625,0.28483942,702.15,699.86,2.81254671]
[1735143738029,0.28483942,702.15,699.87,2.5698659]
[1735143738328,0.28483942,702.15,699.88,2.81254671]
[1735143738719,0.28483942,702.15,699.89,2.5698659]
[1735143738919,0.28483942,702.15,699.9,2.81254671]
[1735143739323,0.28483942,702.15,699.91,2.5698659]
[1735143739523,0.28483942,702.15,699.92,2.81254671]
[1735143740130,0.28483942,702.15,699.93,2.5698659]
[1735143740322,0.28483942,702.15,699.94,2.81254671]
[1735143740723,0.28483942,702.15,699.95,2.5698659]
[1735143740924,0.28483942,702.15,699.39,2.5698659]
[1735143741123,0.28483942,702.15,699.29,1.28001893]
[1735143741920,0.28483942,702.15,699.22,2.79575487]
[1735143742222,0.28483942,702.15,699.23,2.5698659]
[1735143742920,0.28483942,702.15,699.24,2.79424091]
[1735143743222,0.26212654,702.14,699.25,2.5698659]
[1735143743426,0.26212654,702.13,699.26,2.79424091]
[1735143743624,0.26212654,702.12,699.27,2.5698659]
[1735143743824,0.26212654,702.11,699.28,2.79424091]
[1735143744026,0.26212654,702.1,699.28,2.79424091]
[1735143744326,0.26212654,702.09,699.29,2.5698659]
[1735143744527,0.26212654,702.08,699.3,2.79424091]
[1735143744826,0.26212654,702.07,699.31,2.5698659]
[1735143745025,0.26212654,702.06,699.32,2.79424091]
[1735143745223,0.26212654,702.05,699.32,2.79424091]
[1735143745423,0.26212654,702.04,699.33,2.5698659]
[1735143745624,0.26212654,702.03,699.34,2.79424091]
[1735143745920,0.26212654,702.02,699.35,2.5698659]
[1735143746121,0.26212654,702.01,699.36,2.79424091]
[1735143746320,0.26212654,702.0,699.36,2.79424091]
[1735143746525,0.26212654,701.99,699.37,2.5698659]
[1735143746721,0.26212654,701.98,699.38,2.79424091]
[1735143746919,0.28483942,702.15,699.38,2.79424091]
[1735143746920,0.26212654,701.97,699.39,2.5698659]
[1735143747127,0.26212654,701.96,699.4,2.79424091]
[1735143747328,0.26212654,701.95,699.4,2.79424091]
[1735143747529,0.26212654,701.94,699.41,2.5698659]
[1735143747726,0.26212654,701.93,699.42,2.79424091]
[1735143748029,0.26219084,701.92,699.43,2.5698659]
[1735143748225,0.26219084,701.91,699.02,1.28001893]
[1735143748429,0.26219084,701.9,698.93,2.79572987]
[1735143748628,0.26219084,701.89,698.93,2.79572987]
[1735143748930,0.28483942,702.15,698.94,2.5698659]
[1735143749131,0.26218337,702.14,698.95,2.79572987]
[1735143749529,0.26218337,702.14,698.96,2.5698659]
[1735143749730,0.26218337,702.14,698.97,2.79572987]
[1735143750325,0.26218337,702.14,698.98,2.5698659]
[1735143750529,0.26218337,702.14,698.99,2.79572987]
[1735143751032,0.26218337,702.14,699.0,2.5698659]
[1735143751227,0.26218337,702.14,699.01,2.79572987]
[1735143751430,0.26218337,702.14,699.02,2.5698659]
[1735143751626,0.26218337,702.14,699.03,2.79572987]
[1735143752034,0.26218337,702.14,699.04,2.5698659]
[1735143752332,0.26218337,702.14,699.05,2.79572987]
[1735143752832,0.26218337,702.14,699.06,2.5698659]
[1735143753030,0.26218337,702.14,699.07,2.79572987]
[1735143753331,0.26218337,702.14,699.08,2.5698659]
[1735143753530,0.26223811,702.13,699.09,2.79572987]
[1735143753727,0.26223811,702.12,699.1,2.5698659]
[1735143753933,0.26223811,702.11,699.11,2.79572987]
[1735143754232,0.26223811,702.1,699.12,2.5698659]
[1735143754434,0.26223811,702.09,699.13,2.79572987]
[1735143754634,0.26223811,702.08,699.13,2.79572987]
[1735143754832,0.26223811,702.07,699.14,2.5698659]
[1735143755034,0.26223811,702.06,699.15,2.79572987]
[1735143755235,0.26223811,702.05,699.15,2.79572987]
[1735143755435,0.26223811,702.04,699.16,2.5698659]
[1735143755637,0.26223811,702.03,699.17,2.79572987]
[1735143755833,0.26223811,702.02,699.17,2.79572987]
[1735143756034,0.26223811,702.01,699.18,2.5698659]
[1735143756234,0.26224035,702.0,699.19,2.79572987]
[1735143756433,0.26224035,701.99,699.19,2.79572987]
[1735143756636,0.26224035,701.98,699.2,2.5698659]
[1735143756834,0.26224035,701.97,698.94,1.28001893]
[1735143757038,0.26224035,701.96,699.05,1.28001893]
[1735143757238,0.28483942,702.15,699.05,1.28001893]
[1735143757536,0.26223459,702.14,699.05,1.28001893]
[1735143758136,0.26223459,702.14,698.96,5.34481311]
[1735143758339,0.26223459,702.14,698.97,2.80043086]
[1735143758539,0.26223459,702.14,698.97,5.34481311]
[1735143758736,0.26223459,702.14,698.98,2.80043086]
[1735143758942,0.26223561,702.13,698.98,5.34481311]
[1735143759136,0.26223561,702.12,698.99,2.80043086]
[1735143759339,0.26223561,702.11,699.0,2.54438225]
[1735143759639,0.26223561,702.1,699.01,1.46588622]
[1735143759843,0.28490434,701.99,699.0,2.54438225]
[1735143760037,0.26223393,701.98,698.85,1.28001893]
[1735143760252,0.26223393,701.98,698.84,1.28001893]
[1735143761047,0.26223393,701.98,698.81,1.28001893]
[1735143762545,0.26223393,701.98,698.8,4.08269194]
[1735143762746,0.26223393,701.98,698.81,2.80267301]
[1735143762939,0.26223393,701.98,698.82,2.54438225]
[1735143763140,0.26223393,701.98,698.83,2.80267301]
[1735143763446,0.26223393,701.98,698.84,2.54438225]
[1735143763740,0.26223393,701.98,698.85,2.80267301]
[1735143763940,0.26223393,701.98,698.86,2.54438225]
[1735143764140,0.26223393,701.98,698.87,2.80267301]
[1735143764342,0.26223393,701.98,698.88,2.54438225]
[1735143764543,0.26224051,701.97,698.89,2.80267301]
[1735143764744,0.28490434,701.99,698.89,2.80267301]
[1735143764745,0.26224051,701.96,698.89,2.80267301]
[1735143764941,0.26224051,701.95,698.9,2.54438225]
[1735143765243,0.28490434,701.99,698.91,2.80267301]
[1735143765446,0.2622416,701.98,698.92,2.54438225]
[1735143765746,0.2622416,701.98,698.93,2.80267301]
[1735143766248,0.2622416,701.98,698.94,2.54438225]
[1735143766450,0.2622416,701.98,698.95,2.80267301]
[1735143766845,0.2622416,701.98,698.96,2.54438225]
[1735143767053,0.2622416,701.98,698.97,2.80267301]
[1735143767252,0.26225176,701.97,699.3,1.28001893]
[1735143767448,0.26225176,701.96,699.3,1.28001893]
[1735143767663,0.26225176,701.95,699.3,1.28001893]
[1735143767847,0.26225176,701.94,699.3,1.28001893]
[1735143768045,0.26225586,701.93,699.3,1.28001893]
[1735143768250,0.26225586,701.92,699.3,1.28001893]
[1735143768448,0.26225586,701.91,699.31,1.28001893]
[1735143768651,0.26225586,701.9,699.31,1.28001893]
[1735143768851,0.26225586,701.89,699.31,1.28001893]
[1735143769051,0.26225586,701.98,699.31,1.28001893]
[1735143769251,0.26225586,701.97,699.29,5.34705526]
[1735143769450,0.26225586,701.96,699.3,5.34705526]
[1735143769651,0.26225586,701.95,699.31,2.80267301]
[1735143769851,0.28490434,701.99,699.32,2.54438225]
[1735143769852,0.26225586,701.94,699.32,2.54438225]
[1735143770052,0.26225586,701.93,699.33,2.80267301]
[1735143770256,0.26225586,701.92,699.34,2.54438225]
[1735143770451,0.26225586,701.91,699.35,2.80267301]
[1735143770647,0.26225586,701.9,699.36,2.54438225]
[1735143770853,0.26225586,701.89,699.37,2.80267301]
[1735143771049,0.26225586,701.88,699.38,2.54438225]
[1735143771250,0.26225586,701.87,699.39,2.80267301]
[1735143771449,0.26225586,701.86,699.39,2.80267301]
[1735143771650,0.26225586,701.85,699.4,2.54438225]
[1735143771955,0.26225586,701.84,699.41,2.80267301]
[1735143772156,0.26225586,701.83,699.41,2.80267301]
[1735143772354,0.26225586,701.82,699.42,2.54438225]
[1735143772555,0.26225586,701.81,699.43,2.80267301]
[1735143772755,0.28490434,701.99,699.43,2.80267301]
[1735143772756,1.05179864,701.96,699.43,2.80267301]
[1735143772954,0.26232456,701.95,699.44,2.54438225]
[1735143773157,0.26232456,701.94,699.45,2.80267301]
[1735143773358,0.26232456,701.93,699.46,2.54438225]
[1735143773558,1.05179864,701.82,699.47,2.80267301]
[1735143773753,0.26232456,701.81,699.47,2.80267301]
[1735143773958,0.26232456,701.8,699.48,2.54438225]
[1735143774153,0.26232456,701.79,699.49,2.80267301]
[1735143774360,0.26232456,701.78,699.49,2.80267301]
[1735143774553,0.26232456,701.77,699.5,2.54438225]
[1735143774756,0.26232456,701.76,699.51,2.80267301]
[1735143774957,0.26232456,701.75,699.51,2.80267301]
[1735143775158,0.26232456,701.74,699.52,2.54438225]
[1735143775358,0.26232456,701.73,699.53,2.80267301]
[1735143775559,0.26232456,701.9,699.53,2.80267301]
[1735143775759,1.05179864,701.87,699.54,2.54438225]
[1735143775959,0.26232456,701.86,699.54,2.54438225]
[1735143776160,0.26232456,701.86,699.4,1.28001893]
[1735143776360,1.05179864,701.82,699.42,1.28001893]
[1735143776562,0.26230934,701.81,699.42,1.28001893]
[1735143777460,0.26230934,701.81,699.43,1.28001893]
[1735143777662,0.26230934,701.8,699.43,1.28001893]
[1735143777861,0.26230934,701.79,699.43,1.28001893]
[1735143778161,0.26230934,701.78,699.43,1.28001893]
[1735143778362,0.26230282,701.77,699.46,1.28001893]
[1735143778562,0.26230282,701.76,699.46,1.28001893]
[1735143778756,0.26230282,701.75,699.46,1.28001893]
[1735143778963,0.26230282,701.74,699.46,1.28001893]
[1735143779264,0.26230282,701.73,699.51,1.28001893]
[1735143779456,1.05179864,701.81,699.51,1.28001893]
[1735143779457,0.26230282,701.72,699.51,1.28001893]
[1735143779658,1.05179864,701.81,699.51,1.28001893]
[1735143779659,0.26230282,701.71,699.51,1.28001893]
[1735143779859,0.26230282,701.7,699.51,1.28001893]
[1735143780061,0.28490434,701.99,699.47,2.81457155]
[1735143780062,0.26230282,701.69,699.47,2.81457155]
[1735143780257,0.26230282,701.68,699.45,1.28001893]
[1735143780460,0.26230282,701.67,699.48,2.54438225]
[1735143780663,0.28490434,701.99,699.48,2.54438225]
[1735143780664,0.28506677,701.59,699.48,2.54438225]
[1735143780865,0.28506677,701.59,699.47,1.28001893]